[Event "Titled Tuesday Blitz November 14 Early 2023"]
[White "Stark, Lars"]
[Black "Bommini Mounika Akshaya"]
[WhiteFideId "4676386"]
[BlackFideId "25019872"]
[WhiteElo "2622"]
[BlackElo "2322"]
[Result "1-0"]
[Round "7"]
[TimeControl "180+1"]
[Date "2023.11.14"]
[WhiteClock "0:00:24"]
[BlackClock "0:00:00"]
[Board "78"]

1. c4 {[%clk 0:03:00]}  e5 {[%clk 0:02:59]} 2. g3 {[%clk 0:03:00]}  c6 {[%clk 0:02:59]} 3. Bg2 {[%clk 0:03:01]}  d5 {[%clk 0:02:59]} 4. Qa4 {[%clk 0:03:01]}  dxc4 {[%clk 0:02:53]} 5. Qxc4 {[%clk 0:03:00]}  Nd7 {[%clk 0:02:50]} 6. Nf3 {[%clk 0:03:00]}  Ngf6 {[%clk 0:02:47]} 7. d3 {[%clk 0:02:59]}  Nb6 {[%clk 0:02:33]} 8. Qc2 {[%clk 0:02:59]}  Bd6 {[%clk 0:02:32]} 9. O-O {[%clk 0:02:59]}  O-O {[%clk 0:02:31]} 10. Nbd2 {[%clk 0:02:51]}  Bf5 {[%clk 0:02:28]} 11. Nh4 {[%clk 0:02:50]}  Be6 {[%clk 0:02:23]} 12. Re1 {[%clk 0:02:49]}  Qd7 {[%clk 0:02:22]} 13. b3 {[%clk 0:02:46]}  Bh3 {[%clk 0:02:10]} 14. Bh1 {[%clk 0:02:46]}  Ng4 {[%clk 0:01:59]} 15. Nhf3 {[%clk 0:02:43]}  Rad8 {[%clk 0:01:51]} 16. Bb2 {[%clk 0:02:42]}  h6 {[%clk 0:01:20]} 17. a3 {[%clk 0:02:36]}  f5 {[%clk 0:01:15]} 18. b4 {[%clk 0:02:35]}  Nd5 {[%clk 0:01:04]} 19. Rac1 {[%clk 0:02:23]}  f4 {[%clk 0:01:02]} 20. Ne4 {[%clk 0:02:21]}  fxg3 {[%clk 0:01:01]} 21. hxg3 {[%clk 0:02:21]}  Bc7 {[%clk 0:00:56]} 22. Nc5 {[%clk 0:02:17]}  Qe7 {[%clk 0:00:52]} 23. Qc4 {[%clk 0:02:02]}  Qf7 {[%clk 0:00:42]} 24. Nxb7 {[%clk 0:01:46]}  Bb6 {[%clk 0:00:16]} 25. Nc5 {[%clk 0:01:36]}  Rde8 {[%clk 0:00:16]} 26. e4 {[%clk 0:01:34]}  Ne7 {[%clk 0:00:12]} 27. Qxf7+ {[%clk 0:01:34]}  Rxf7 {[%clk 0:00:12]} 28. Nxe5 {[%clk 0:01:04]}  Rxf2 {[%clk 0:00:08]} 29. Bd4 {[%clk 0:01:04]}  Ra2 {[%clk 0:00:05]} 30. Ra1 {[%clk 0:00:51]}  Rxa1 {[%clk 0:00:04]} 31. Rxa1 {[%clk 0:00:51]}  Nxe5 {[%clk 0:00:05]} 32. Bxe5 {[%clk 0:00:51]}  Ng6 {[%clk 0:00:06]} 33. Bd6 {[%clk 0:00:44]}  Rd8 {[%clk 0:00:06]} 34. e5 {[%clk 0:00:44]}  Nf8 {[%clk 0:00:06]} 35. Bxc6 {[%clk 0:00:42]}  Ne6 {[%clk 0:00:06]} 36. Kh2 {[%clk 0:00:36]}  Bf5 {[%clk 0:00:06]} 37. Bd5 {[%clk 0:00:32]}  Bxc5 {[%clk 0:00:05]} 38. bxc5 {[%clk 0:00:32]}  Kh7 {[%clk 0:00:05]} 39. Rd1 {[%clk 0:00:29]}  Nd4 {[%clk 0:00:05]} 40. c6 {[%clk 0:00:28]}  Rc8 {[%clk 0:00:04]} 41. c7 {[%clk 0:00:28]}  Bg4 {[%clk 0:00:02]} 42. Rc1 {[%clk 0:00:26]}  Nf3+ {[%clk 0:00:02]} 43. Kg2 {[%clk 0:00:24]}  Ng5 {[%clk 0:00:00]} 44. Bb7 {[%clk 0:00:24]} 1-0


[Site "https://www.chess.com"]

[Event "Titled Tuesday Blitz November 14 Early 2023"]
[White "Sousa, Andre Ventura"]
[Black "Suduvasachmatai"]
[WhiteFideId "1917617"]
[WhiteElo "2616"]
[BlackElo "2236"]
[Result "1-0"]
[Round "7"]
[TimeControl "180+1"]
[Date "2023.11.14"]
[WhiteClock "0:01:32"]
[BlackClock "0:00:16"]
[Board "80"]

1. e4 {[%clk 0:02:53]}  c5 {[%clk 0:02:53]} 2. Nf3 {[%clk 0:02:53]}  d6 {[%clk 0:02:52]} 3. d4 {[%clk 0:02:54]}  cxd4 {[%clk 0:02:52]} 4. Nxd4 {[%clk 0:02:54]}  Nf6 {[%clk 0:02:53]} 5. Nc3 {[%clk 0:02:54]}  a6 {[%clk 0:02:52]} 6. h3 {[%clk 0:02:50]}  e6 {[%clk 0:02:53]} 7. g4 {[%clk 0:02:50]}  Be7 {[%clk 0:02:51]} 8. Bg2 {[%clk 0:02:51]}  Nc6 {[%clk 0:02:49]} 9. Be3 {[%clk 0:02:49]}  h6 {[%clk 0:02:47]} 10. Qd2 {[%clk 0:02:49]}  Bd7 {[%clk 0:02:44]} 11. O-O-O {[%clk 0:02:49]}  Ne5 {[%clk 0:02:44]} 12. Qe2 {[%clk 0:02:48]}  Rc8 {[%clk 0:02:41]} 13. Kb1 {[%clk 0:02:48]}  b5 {[%clk 0:02:35]} 14. f4 {[%clk 0:02:40]}  Nc4 {[%clk 0:02:34]} 15. f5 {[%clk 0:02:23]}  e5 {[%clk 0:02:26]} 16. Nb3 {[%clk 0:02:20]}  Qc7 {[%clk 0:02:21]} 17. Bc1 {[%clk 0:02:15]}  a5 {[%clk 0:02:12]} 18. h4 {[%clk 0:02:04]}  a4 {[%clk 0:02:10]} 19. g5 {[%clk 0:01:57]}  Ng8 {[%clk 0:01:54]} 20. Nd5 {[%clk 0:01:55]}  Qa7 {[%clk 0:01:26]} 21. Nd2 {[%clk 0:01:51]}  Nxd2+ {[%clk 0:00:51]} 22. Bxd2 {[%clk 0:01:49]}  Qc5 {[%clk 0:00:51]} 23. Bb4 {[%clk 0:01:48]}  Qc4 {[%clk 0:00:48]} 24. Qd2 {[%clk 0:01:35]}  Bc6 {[%clk 0:00:36]} 25. Nxe7 {[%clk 0:01:33]}  Nxe7 {[%clk 0:00:29]} 26. Qxd6 {[%clk 0:01:33]}  Ng8 {[%clk 0:00:16]} 27. Qf8# {[%clk 0:01:32]} 1-0


[Site "https://www.chess.com"]

[Event "Titled Tuesday Blitz November 14 Early 2023"]
[White "Gharibyan, Mamikon"]
[Black "Manukian, Artak"]
[WhiteFideId "13308300"]
[BlackFideId "13301373"]
[WhiteElo "2786"]
[BlackElo "2525"]
[Result "1-0"]
[Round "7"]
[TimeControl "180+1"]
[Date "2023.11.14"]
[WhiteClock "0:01:42"]
[BlackClock "0:01:35"]
[Board "82"]

1. b3 {[%clk 0:02:58]}  a5 {[%clk 0:02:59]} 2. Nc3 {[%clk 0:02:58]}  d5 {[%clk 0:02:58]} 3. e3 {[%clk 0:02:56]}  e5 {[%clk 0:02:56]} 4. Bb2 {[%clk 0:02:53]}  Nf6 {[%clk 0:02:55]} 5. Nf3 {[%clk 0:02:52]}  Bd6 {[%clk 0:02:54]} 6. Nb5 {[%clk 0:02:48]}  Nbd7 {[%clk 0:02:50]} 7. Nxd6+ {[%clk 0:02:46]}  cxd6 {[%clk 0:02:50]} 8. a4 {[%clk 0:02:46]}  O-O {[%clk 0:02:49]} 9. Be2 {[%clk 0:02:45]}  Nc5 {[%clk 0:02:43]} 10. d4 {[%clk 0:02:44]}  exd4 {[%clk 0:02:39]} 11. Nxd4 {[%clk 0:02:44]}  Nce4 {[%clk 0:02:33]} 12. O-O {[%clk 0:02:42]}  Re8 {[%clk 0:02:33]} 13. Re1 {[%clk 0:02:38]}  Qe7 {[%clk 0:02:30]} 14. f3 {[%clk 0:02:28]}  Nc3 {[%clk 0:02:23]} 15. Qd2 {[%clk 0:02:26]}  Nxe2+ {[%clk 0:02:22]} 16. Qxe2 {[%clk 0:02:16]}  Bd7 {[%clk 0:02:16]} 17. Qf2 {[%clk 0:02:16]}  Rac8 {[%clk 0:02:15]} 18. Qh4 {[%clk 0:02:11]}  h6 {[%clk 0:02:10]} 19. Re2 {[%clk 0:02:10]}  Nh7 {[%clk 0:02:10]} 20. Qg3 {[%clk 0:02:05]}  Ng5 {[%clk 0:02:08]} 21. h4 {[%clk 0:01:59]}  Ne6 {[%clk 0:02:08]} 22. Nf5 {[%clk 0:01:57]}  Qf8 {[%clk 0:02:02]} 23. Nxd6 {[%clk 0:01:50]}  d4 {[%clk 0:01:50]} 24. Nxc8 {[%clk 0:01:45]}  Rxc8 {[%clk 0:01:45]} 25. exd4 {[%clk 0:01:45]}  Bc6 {[%clk 0:01:35]} 26. c4 {[%clk 0:01:42]} 1-0


[Site "https://www.chess.com"]

[Event "Titled Tuesday Blitz November 14 Early 2023"]
[White "Hayrapetyan, Hovik"]
[Black "Pinto, Daniel"]
[WhiteFideId "13302639"]
[BlackFideId "3303144"]
[WhiteElo "2723"]
[BlackElo "2520"]
[Result "1-0"]
[Round "7"]
[TimeControl "180+1"]
[Date "2023.11.14"]
[WhiteClock "0:00:11"]
[BlackClock "0:00:00"]
[Board "84"]

1. d4 {[%clk 0:03:00]}  Nf6 {[%clk 0:02:59]} 2. c4 {[%clk 0:03:00]}  c5 {[%clk 0:03:00]} 3. d5 {[%clk 0:03:01]}  d6 {[%clk 0:03:00]} 4. Nc3 {[%clk 0:03:01]}  g6 {[%clk 0:03:01]} 5. e4 {[%clk 0:02:59]}  Bg7 {[%clk 0:03:01]} 6. Nf3 {[%clk 0:02:57]}  O-O {[%clk 0:03:02]} 7. h3 {[%clk 0:02:49]}  e6 {[%clk 0:03:02]} 8. Bd3 {[%clk 0:02:50]}  exd5 {[%clk 0:03:03]} 9. cxd5 {[%clk 0:02:49]}  b5 {[%clk 0:02:35]} 10. O-O {[%clk 0:02:30]}  b4 {[%clk 0:02:32]} 11. Ne2 {[%clk 0:02:29]}  Re8 {[%clk 0:02:31]} 12. Ng3 {[%clk 0:02:27]}  Ba6 {[%clk 0:02:27]} 13. Bxa6 {[%clk 0:02:24]}  Nxa6 {[%clk 0:02:28]} 14. Qd3 {[%clk 0:02:02]}  Qb6 {[%clk 0:01:39]} 15. Be3 {[%clk 0:01:41]}  Nd7 {[%clk 0:01:30]} 16. Qc2 {[%clk 0:01:25]}  Nc7 {[%clk 0:01:18]} 17. Rae1 {[%clk 0:01:14]}  a5 {[%clk 0:01:14]} 18. Nd2 {[%clk 0:01:12]}  Nb5 {[%clk 0:00:42]} 19. Nc4 {[%clk 0:01:09]}  Qa6 {[%clk 0:00:33]} 20. f4 {[%clk 0:01:08]}  Nd4 {[%clk 0:00:19]} 21. Bxd4 {[%clk 0:01:08]}  Bxd4+ {[%clk 0:00:20]} 22. Kh2 {[%clk 0:01:09]}  f6 {[%clk 0:00:12]} 23. e5 {[%clk 0:01:04]}  dxe5 {[%clk 0:00:11]} 24. f5 {[%clk 0:01:02]}  g5 {[%clk 0:00:04]} 25. Ne4 {[%clk 0:01:03]}  Rf8 {[%clk 0:00:03]} 26. h4 {[%clk 0:00:54]}  h6 {[%clk 0:00:02]} 27. hxg5 {[%clk 0:00:54]}  hxg5 {[%clk 0:00:03]} 28. Kg3 {[%clk 0:00:53]}  Kg7 {[%clk 0:00:03]} 29. Rh1 {[%clk 0:00:45]}  Rh8 {[%clk 0:00:03]} 30. Qc1 {[%clk 0:00:45]}  Qb7 {[%clk 0:00:02]} 31. Nxg5 {[%clk 0:00:40]}  Qxd5 {[%clk 0:00:02]} 32. Ne6+ {[%clk 0:00:41]}  Kf7 {[%clk 0:00:02]} 33. Re4 {[%clk 0:00:10]}  Rag8+ {[%clk 0:00:03]} 34. Kf3 {[%clk 0:00:10]}  Rxh1 {[%clk 0:00:02]} 35. Qxh1 {[%clk 0:00:11]}  Rg3+ {[%clk 0:00:01]} 36. Kxg3 {[%clk 0:00:10]}  Qxe4 {[%clk 0:00:02]} 37. Nd6+ {[%clk 0:00:10]}  Ke7 {[%clk 0:00:00]} 38. Nxe4 {[%clk 0:00:11]} 1-0


[Site "https://www.chess.com"]

[Event "Titled Tuesday Blitz November 14 Early 2023"]
[White "Djokic, Mihailo"]
[Black "Erzhanov, Arman"]
[WhiteFideId "976440"]
[BlackFideId "4138821"]
[WhiteElo "2696"]
[BlackElo "2508"]
[Result "1-0"]
[Round "7"]
[TimeControl "180+1"]
[Date "2023.11.14"]
[WhiteClock "0:01:02"]
[BlackClock "0:00:34"]
[Board "86"]

1. e4 {[%clk 0:03:00]}  c5 {[%clk 0:03:00]} 2. Nf3 {[%clk 0:03:01]}  Nc6 {[%clk 0:03:00]} 3. d4 {[%clk 0:03:01]}  cxd4 {[%clk 0:03:01]} 4. Nxd4 {[%clk 0:03:02]}  Nf6 {[%clk 0:03:01]} 5. Nc3 {[%clk 0:03:02]}  e5 {[%clk 0:03:01]} 6. Ndb5 {[%clk 0:03:03]}  d6 {[%clk 0:03:02]} 7. Bg5 {[%clk 0:03:04]}  a6 {[%clk 0:03:02]} 8. Bxf6 {[%clk 0:03:05]}  gxf6 {[%clk 0:03:02]} 9. Na3 {[%clk 0:03:05]}  b5 {[%clk 0:03:03]} 10. Nd5 {[%clk 0:03:06]}  Bg7 {[%clk 0:03:03]} 11. c3 {[%clk 0:03:06]}  Ne7 {[%clk 0:03:03]} 12. Nxe7 {[%clk 0:03:05]}  Qxe7 {[%clk 0:03:04]} 13. Nc2 {[%clk 0:03:05]}  f5 {[%clk 0:03:04]} 14. exf5 {[%clk 0:03:05]}  Bxf5 {[%clk 0:03:05]} 15. Ne3 {[%clk 0:03:06]}  Be6 {[%clk 0:03:05]} 16. a4 {[%clk 0:03:06]}  O-O {[%clk 0:02:48]} 17. axb5 {[%clk 0:03:03]}  axb5 {[%clk 0:02:46]} 18. Rxa8 {[%clk 0:03:04]}  Rxa8 {[%clk 0:02:44]} 19. Bxb5 {[%clk 0:03:04]}  Qb7 {[%clk 0:02:33]} 20. Bd3 {[%clk 0:03:02]}  Qxb2 {[%clk 0:02:27]} 21. O-O {[%clk 0:03:02]}  Qxc3 {[%clk 0:02:25]} 22. Be4 {[%clk 0:02:56]}  Rd8 {[%clk 0:02:10]} 23. Qh5 {[%clk 0:02:51]}  h6 {[%clk 0:02:09]} 24. Bd5 {[%clk 0:02:42]}  Qd4 {[%clk 0:01:38]} 25. Rd1 {[%clk 0:02:36]}  Qf4 {[%clk 0:01:37]} 26. h4 {[%clk 0:02:24]}  Rf8 {[%clk 0:01:19]} 27. g3 {[%clk 0:02:21]}  Qf6 {[%clk 0:01:12]} 28. Be4 {[%clk 0:02:21]}  Qe7 {[%clk 0:01:04]} 29. Nf5 {[%clk 0:02:03]}  Bxf5 {[%clk 0:01:03]} 30. Qxf5 {[%clk 0:02:04]}  Rd8 {[%clk 0:01:02]} 31. Bd5 {[%clk 0:01:46]}  Qf6 {[%clk 0:01:01]} 32. Qh5 {[%clk 0:01:45]}  Kf8 {[%clk 0:01:00]} 33. Rb1 {[%clk 0:01:42]}  Qg6 {[%clk 0:01:00]} 34. Qd1 {[%clk 0:01:40]}  e4 {[%clk 0:00:58]} 35. Rb7 {[%clk 0:01:39]}  e3 {[%clk 0:00:44]} 36. Rxf7+ {[%clk 0:01:38]}  Ke8 {[%clk 0:00:44]} 37. Qf3 {[%clk 0:01:36]}  exf2+ {[%clk 0:00:44]} 38. Qxf2 {[%clk 0:01:36]}  Qb1+ {[%clk 0:00:37]} 39. Kg2 {[%clk 0:01:23]}  Qb2 {[%clk 0:00:36]} 40. Bc6+ {[%clk 0:01:07]}  Rd7 {[%clk 0:00:35]} 41. Bxd7+ {[%clk 0:01:06]}  Kd8 {[%clk 0:00:35]} 42. Qxb2 {[%clk 0:01:07]}  Bxb2 {[%clk 0:00:36]} 43. Kf3 {[%clk 0:01:07]}  Be5 {[%clk 0:00:36]} 44. g4 {[%clk 0:01:07]}  Kc7 {[%clk 0:00:35]} 45. Ke4 {[%clk 0:01:06]}  Kb6 {[%clk 0:00:35]} 46. Kd5 {[%clk 0:01:07]}  Bg3 {[%clk 0:00:35]} 47. g5 {[%clk 0:01:07]}  hxg5 {[%clk 0:00:34]} 48. hxg5 {[%clk 0:01:07]}  Be5 {[%clk 0:00:34]} 49. g6 {[%clk 0:01:08]}  Kc7 {[%clk 0:00:35]} 50. g7 {[%clk 0:01:08]}  Bxg7 {[%clk 0:00:35]} 51. Rxg7 {[%clk 0:01:09]}  Kb6 {[%clk 0:00:36]} 52. Bc6 {[%clk 0:01:08]}  Ka5 {[%clk 0:00:35]} 53. Rb7 {[%clk 0:01:08]}  Ka6 {[%clk 0:00:34]} 54. Kc4 {[%clk 0:01:09]}  Ka5 {[%clk 0:00:34]} 55. Bb5 {[%clk 0:01:01]}  d5+ {[%clk 0:00:34]} 56. Kc5 {[%clk 0:01:02]}  d4 {[%clk 0:00:34]} 57. Ra7# {[%clk 0:01:02]} 1-0


[Site "https://www.chess.com"]

[Event "Titled Tuesday Blitz November 14 Early 2023"]
[White "Nagare Kaivalya Sandip"]
[Black "elmusmolamas"]
[WhiteFideId "25957929"]
[WhiteElo "2664"]
[BlackElo "2508"]
[Result "0-1"]
[Round "7"]
[TimeControl "180+1"]
[Date "2023.11.14"]
[WhiteClock "0:01:14"]
[BlackClock "0:00:14"]
[Board "87"]

1. e4 {[%clk 0:02:59]}  c6 {[%clk 0:02:59]} 2. d4 {[%clk 0:02:59]}  d5 {[%clk 0:03:00]} 3. e5 {[%clk 0:02:57]}  Bf5 {[%clk 0:02:59]} 4. h4 {[%clk 0:02:56]}  h5 {[%clk 0:02:59]} 5. c4 {[%clk 0:02:56]}  e6 {[%clk 0:02:56]} 6. Nc3 {[%clk 0:02:57]}  Ne7 {[%clk 0:02:53]} 7. Bd3 {[%clk 0:02:57]}  Bg6 {[%clk 0:02:51]} 8. Bxg6 {[%clk 0:02:56]}  Nxg6 {[%clk 0:02:52]} 9. Bg5 {[%clk 0:02:55]}  Be7 {[%clk 0:02:51]} 10. Nf3 {[%clk 0:02:55]}  Bxg5 {[%clk 0:02:24]} 11. Nxg5 {[%clk 0:02:56]}  Nxh4 {[%clk 0:02:24]} 12. Qd2 {[%clk 0:02:43]}  Ng6 {[%clk 0:02:14]} 13. cxd5 {[%clk 0:02:41]}  exd5 {[%clk 0:02:07]} 14. e6 {[%clk 0:02:34]}  fxe6 {[%clk 0:01:47]} 15. Nxe6 {[%clk 0:02:33]}  Qe7 {[%clk 0:01:46]} 16. O-O-O {[%clk 0:02:31]}  Kf7 {[%clk 0:01:13]} 17. Ng5+ {[%clk 0:02:26]}  Kg8 {[%clk 0:01:13]} 18. Rde1 {[%clk 0:02:25]}  Qf8 {[%clk 0:01:12]} 19. Re6 {[%clk 0:02:21]}  Nf4 {[%clk 0:01:08]} 20. Ree1 {[%clk 0:02:15]}  Nd7 {[%clk 0:01:02]} 21. g3 {[%clk 0:02:14]}  Ng6 {[%clk 0:00:52]} 22. f4 {[%clk 0:02:10]}  Nf6 {[%clk 0:00:45]} 23. Ne6 {[%clk 0:02:09]}  Qd6 {[%clk 0:00:39]} 24. f5 {[%clk 0:02:06]}  Re8 {[%clk 0:00:33]} 25. Nc5 {[%clk 0:01:56]}  Rxe1+ {[%clk 0:00:25]} 26. Rxe1 {[%clk 0:01:54]}  Nf8 {[%clk 0:00:26]} 27. Qd3 {[%clk 0:01:47]}  b6 {[%clk 0:00:24]} 28. Ne6 {[%clk 0:01:46]}  Nxe6 {[%clk 0:00:20]} 29. Rxe6 {[%clk 0:01:46]}  Qd7 {[%clk 0:00:18]} 30. Ne2 {[%clk 0:01:44]}  h4 {[%clk 0:00:18]} 31. Nf4 {[%clk 0:01:42]}  h3 {[%clk 0:00:16]} 32. Re1 {[%clk 0:01:38]}  h2 {[%clk 0:00:16]} 33. Rh1 {[%clk 0:01:38]}  Ne4 {[%clk 0:00:17]} 34. Qe2 {[%clk 0:01:26]}  Nxg3 {[%clk 0:00:14]} 35. Qg2 {[%clk 0:01:14]} 0-1


[Site "https://www.chess.com"]

[Event "Titled Tuesday Blitz November 14 Early 2023"]
[White "Golubev, Mikhail"]
[Black "Dudzinski, Pawel"]
[WhiteFideId "14100983"]
[BlackFideId "1117890"]
[WhiteElo "2653"]
[BlackElo "2502"]
[Result "1-0"]
[Round "7"]
[TimeControl "180+1"]
[Date "2023.11.14"]
[WhiteClock "0:00:30"]
[BlackClock "0:00:00"]
[Board "88"]

1. e4 {[%clk 0:03:00]}  c6 {[%clk 0:03:00]} 2. Nf3 {[%clk 0:02:59]}  d5 {[%clk 0:03:01]} 3. Nc3 {[%clk 0:03:00]}  dxe4 {[%clk 0:03:01]} 4. Nxe4 {[%clk 0:03:00]}  Nf6 {[%clk 0:03:01]} 5. Qe2 {[%clk 0:03:00]}  Nxe4 {[%clk 0:03:01]} 6. Qxe4 {[%clk 0:03:00]}  Qa5 {[%clk 0:03:02]} 7. b4 {[%clk 0:02:42]}  Qd5 {[%clk 0:03:00]} 8. Qxd5 {[%clk 0:02:39]}  cxd5 {[%clk 0:03:01]} 9. Bb2 {[%clk 0:02:40]}  e6 {[%clk 0:02:58]} 10. a3 {[%clk 0:02:38]}  f6 {[%clk 0:02:56]} 11. c4 {[%clk 0:02:37]}  Nc6 {[%clk 0:02:48]} 12. cxd5 {[%clk 0:02:32]}  exd5 {[%clk 0:02:49]} 13. Bb5 {[%clk 0:02:28]}  Bd7 {[%clk 0:02:32]} 14. O-O {[%clk 0:02:26]}  O-O-O {[%clk 0:02:28]} 15. Rac1 {[%clk 0:02:25]}  Kb8 {[%clk 0:02:20]} 16. Rfe1 {[%clk 0:02:18]}  Bd6 {[%clk 0:02:19]} 17. Bxc6 {[%clk 0:02:10]}  bxc6 {[%clk 0:02:06]} 18. Nd4 {[%clk 0:01:58]}  Kb7 {[%clk 0:01:58]} 19. Nb3 {[%clk 0:01:58]}  Rhe8 {[%clk 0:01:25]} 20. Re3 {[%clk 0:01:57]}  Rxe3 {[%clk 0:01:19]} 21. dxe3 {[%clk 0:01:55]}  Rc8 {[%clk 0:01:06]} 22. Bd4 {[%clk 0:01:55]}  Kb8 {[%clk 0:00:56]} 23. f3 {[%clk 0:01:51]}  Bc7 {[%clk 0:00:56]} 24. Kf2 {[%clk 0:01:49]}  Bb6 {[%clk 0:00:56]} 25. Bc5 {[%clk 0:01:44]}  Kb7 {[%clk 0:00:55]} 26. Ke2 {[%clk 0:01:38]}  Kc7 {[%clk 0:00:53]} 27. Kd2 {[%clk 0:01:37]}  Rb8 {[%clk 0:00:49]} 28. Nd4 {[%clk 0:01:33]}  a5 {[%clk 0:00:36]} 29. Bxb6+ {[%clk 0:01:25]}  Rxb6 {[%clk 0:00:29]} 30. b5 {[%clk 0:01:06]}  g6 {[%clk 0:00:20]} 31. Rc5 {[%clk 0:00:52]}  Kd6 {[%clk 0:00:19]} 32. bxc6 {[%clk 0:00:47]}  Bxc6 {[%clk 0:00:18]} 33. Rxa5 {[%clk 0:00:46]}  Bd7 {[%clk 0:00:18]} 34. Kc3 {[%clk 0:00:43]}  Rb1 {[%clk 0:00:17]} 35. Ra6+ {[%clk 0:00:41]}  Kc7 {[%clk 0:00:17]} 36. Ra7+ {[%clk 0:00:40]}  Kd6 {[%clk 0:00:15]} 37. a4 {[%clk 0:00:37]}  Rc1+ {[%clk 0:00:14]} 38. Kb4 {[%clk 0:00:31]}  Rb1+ {[%clk 0:00:12]} 39. Ka5 {[%clk 0:00:31]}  Rb2 {[%clk 0:00:12]} 40. Nb5+ {[%clk 0:00:30]}  Ke6 {[%clk 0:00:00]} 41. Kb6 {[%clk 0:00:30]} 1-0


[Site "https://www.chess.com"]

[Event "Titled Tuesday Blitz November 14 Early 2023"]
[White "Al-Tarboush, Ward"]
[Black "Omariev, Maksim"]
[WhiteFideId "7601450"]
[BlackFideId "4193423"]
[WhiteElo "2630"]
[BlackElo "2483"]
[Result "0-1"]
[Round "7"]
[TimeControl "180+1"]
[Date "2023.11.14"]
[WhiteClock "0:00:11"]
[BlackClock "0:00:38"]
[Board "91"]

1. e4 {[%clk 0:03:00]}  c5 {[%clk 0:02:59]} 2. Nf3 {[%clk 0:03:00]}  d6 {[%clk 0:02:58]} 3. d4 {[%clk 0:03:00]}  cxd4 {[%clk 0:02:59]} 4. Nxd4 {[%clk 0:03:01]}  Nf6 {[%clk 0:02:57]} 5. Nc3 {[%clk 0:03:00]}  a6 {[%clk 0:02:58]} 6. h3 {[%clk 0:03:00]}  e6 {[%clk 0:02:57]} 7. g4 {[%clk 0:02:58]}  Nfd7 {[%clk 0:02:49]} 8. Bg2 {[%clk 0:02:57]}  Qc7 {[%clk 0:02:49]} 9. Be3 {[%clk 0:02:52]}  Be7 {[%clk 0:02:46]} 10. Qe2 {[%clk 0:02:51]}  Nc6 {[%clk 0:02:47]} 11. O-O-O {[%clk 0:02:50]}  Nce5 {[%clk 0:02:46]} 12. f4 {[%clk 0:02:50]}  Nc4 {[%clk 0:02:46]} 13. g5 {[%clk 0:02:47]}  Nxe3 {[%clk 0:02:39]} 14. Qxe3 {[%clk 0:02:47]}  Nb6 {[%clk 0:02:31]} 15. Qd3 {[%clk 0:02:43]}  Nc4 {[%clk 0:02:27]} 16. f5 {[%clk 0:02:38]}  Bxg5+ {[%clk 0:02:24]} 17. Kb1 {[%clk 0:02:38]}  O-O {[%clk 0:02:05]} 18. Bf3 {[%clk 0:02:34]}  Ne5 {[%clk 0:01:55]} 19. Qe2 {[%clk 0:02:33]}  b5 {[%clk 0:01:55]} 20. Rhg1 {[%clk 0:02:33]}  Bf6 {[%clk 0:01:56]} 21. Rg2 {[%clk 0:02:31]}  b4 {[%clk 0:01:56]} 22. Na4 {[%clk 0:02:28]}  Bd7 {[%clk 0:01:56]} 23. fxe6 {[%clk 0:02:25]}  Bxa4 {[%clk 0:01:52]} 24. exf7+ {[%clk 0:02:11]}  Qxf7 {[%clk 0:01:51]} 25. Nf5 {[%clk 0:02:12]}  Kh8 {[%clk 0:01:45]} 26. Rdg1 {[%clk 0:02:05]}  Bb5 {[%clk 0:01:18]} 27. Qe3 {[%clk 0:01:55]}  Nxf3 {[%clk 0:01:18]} 28. Qxf3 {[%clk 0:01:54]}  Be5 {[%clk 0:01:18]} 29. Qd1 {[%clk 0:01:47]}  Rad8 {[%clk 0:00:59]} 30. b3 {[%clk 0:01:22]}  d5 {[%clk 0:00:54]} 31. Qc1 {[%clk 0:00:36]}  dxe4 {[%clk 0:00:52]} 32. Ne3 {[%clk 0:00:28]}  Bc3 {[%clk 0:00:45]} 33. Ng4 {[%clk 0:00:27]}  Qf1 {[%clk 0:00:40]} 34. Ne3 {[%clk 0:00:18]}  Qxc1+ {[%clk 0:00:39]} 35. Rxc1 {[%clk 0:00:19]}  Rf3 {[%clk 0:00:39]} 36. Ng4 {[%clk 0:00:15]}  Rxh3 {[%clk 0:00:38]} 37. Rh1 {[%clk 0:00:11]}  Rxh1+ {[%clk 0:00:38]} 0-1


[Site "https://www.chess.com"]

[Event "Titled Tuesday Blitz November 14 Early 2023"]
[White "WindWhistler11"]
[Black "Demin, Vladimir"]
[BlackFideId "4167457"]
[WhiteElo "2456"]
[BlackElo "2596"]
[Result "1-0"]
[Round "7"]
[TimeControl "180+1"]
[Date "2023.11.14"]
[WhiteClock "0:00:35"]
[BlackClock "0:01:06"]
[Board "96"]

1. Nf3 {[%clk 0:03:00]}  d5 {[%clk 0:02:59]} 2. c4 {[%clk 0:03:00]}  e6 {[%clk 0:02:58]} 3. g3 {[%clk 0:03:00]}  Nf6 {[%clk 0:02:58]} 4. Bg2 {[%clk 0:03:00]}  Be7 {[%clk 0:02:58]} 5. O-O {[%clk 0:03:00]}  O-O {[%clk 0:02:59]} 6. b3 {[%clk 0:03:00]}  d4 {[%clk 0:02:58]} 7. e3 {[%clk 0:03:00]}  c5 {[%clk 0:02:58]} 8. exd4 {[%clk 0:03:00]}  cxd4 {[%clk 0:02:59]} 9. Re1 {[%clk 0:03:00]}  Nc6 {[%clk 0:03:00]} 10. d3 {[%clk 0:02:58]}  Nd7 {[%clk 0:02:59]} 11. Na3 {[%clk 0:02:56]}  e5 {[%clk 0:02:57]} 12. Nc2 {[%clk 0:02:55]}  Re8 {[%clk 0:02:55]} 13. a3 {[%clk 0:02:50]}  a5 {[%clk 0:02:55]} 14. Rb1 {[%clk 0:02:21]}  Bf8 {[%clk 0:02:26]} 15. b4 {[%clk 0:02:17]}  axb4 {[%clk 0:02:26]} 16. axb4 {[%clk 0:02:18]}  Qc7 {[%clk 0:02:15]} 17. Nfxd4 {[%clk 0:01:48]}  Nxd4 {[%clk 0:02:11]} 18. Nxd4 {[%clk 0:01:47]}  Nf6 {[%clk 0:02:05]} 19. Nb5 {[%clk 0:01:43]}  Qd8 {[%clk 0:02:05]} 20. Bb2 {[%clk 0:01:36]}  Bd7 {[%clk 0:01:54]} 21. Rxe5 {[%clk 0:01:20]}  Rxe5 {[%clk 0:01:52]} 22. Bxe5 {[%clk 0:01:20]}  Bxb5 {[%clk 0:01:53]} 23. cxb5 {[%clk 0:01:21]}  Nd5 {[%clk 0:01:52]} 24. Qf3 {[%clk 0:01:14]}  Nxb4 {[%clk 0:01:52]} 25. Qxb7 {[%clk 0:01:14]}  Ra2 {[%clk 0:01:50]} 26. Rxb4 {[%clk 0:00:39]}  Bxb4 {[%clk 0:01:08]} 27. Bd5 {[%clk 0:00:39]}  Ra7 {[%clk 0:01:06]} 28. Bxf7+ {[%clk 0:00:35]} 1-0


[Site "https://www.chess.com"]